fUSD/lending_fUSD_20240501
["ID","MTS","AMOUNT","RATE_DAILY","PERIOD"]
[325173650,1714548646102,-559.18,0.00011778,2]
[325173652,1714548646111,-1984.57,0.00011778,2]
[325173654,1714548646121,-7982.22,0.00011778,2]
[325173656,1714548646130,-1034.21,0.00011778,2]
[325173707,1714548646432,-823.55,0.00011778,2]
[325173711,1714548646448,-7713.43,0.00011778,2]
[325173714,1714548646458,-774.68,0.00011778,2]
[325173717,1714548646468,-500.0,0.00011778,2]
[325173720,1714548646484,-500.0,0.00011778,2]
[325173723,1714548646493,-3660.22,0.00011778,2]
[325173726,1714548646502,-500.0,0.00011778,2]
[325173729,1714548646510,-500.0,0.00011778,2]
[325173732,1714548646519,-559.31,0.00011778,2]
[325173735,1714548646528,-500.0,0.00011778,2]
[325173738,1714548646537,-5028.53,0.00011778,2]
[325173741,1714548646546,-500.0,0.00011778,2]
[325173744,1714548646555,-500.0,0.00011778,2]
[325173746,1714548646564,-500.56,0.00011778,2]
[325173749,1714548646573,-500.0,0.00011779,2]
[325173752,1714548646582,-586.59,0.00011779,2]
[325173754,1714548646593,-500.0,0.00011779,2]
[325173756,1714548646602,-1000.0,0.000118,4]
[325173759,1714548646611,-317.0,0.00011898,2]
[325173762,1714548646620,-2000.0,0.000119,4]
[325173765,1714548646629,-422.02,0.00011942,2]
[325173768,1714548646638,-1211.12840116,0.0001195,2]
[325173771,1714548646648,-161.22381499,0.0001195,2]
[325173774,1714548646657,-372.1,0.0001195,2]
[325173777,1714548646666,-500.0,0.0001195,2]
[325173780,1714548646676,-281.42234839,0.0001195,2]
[325173783,1714548646685,-453.24548754,0.0001195,2]
[325173785,1714548646695,-500.0,0.00011951,2]
[325173787,1714548646704,-500.0,0.00011951,2]
[325173789,1714548646713,-500.0,0.00011951,2]
[325173791,1714548646726,-500.0,0.00011951,2]
[325173793,1714548646734,-500.0,0.00011951,2]
[325173795,1714548646743,-500.0,0.00011951,2]
[325173797,1714548646752,-500.0,0.00011951,2]
[325173799,1714548646761,-500.0,0.00011951,2]
[325173801,1714548646770,-500.0,0.00011951,2]
[325173803,1714548646779,-500.0,0.00011951,2]
[325173805,1714548646789,-500.0,0.00011951,2]
[325173806,1714548646798,-4232.42,0.00011951,2]
[325173808,1714548646806,-616.56,0.00011951,2]
[325173810,1714548646815,-569.82,0.00011951,2]
[325173812,1714548646824,-500.0,0.00011951,2]
[325173814,1714548646834,-500.0,0.00011951,2]
[325173816,1714548646843,-1786.87,0.00011951,2]
[325173818,1714548646852,-500.0,0.00011951,2]
[325173820,1714548646861,-553.64,0.00011951,2]
[325173823,1714548646870,-500.0,0.00011951,2]
[325173825,1714548646879,-500.0,0.00011951,2]
[325173826,1714548646888,-2605.64,0.00011951,2]
[325173829,1714548646898,-500.0,0.00011951,2]
[325173830,1714548646907,-500.0,0.00011951,2]
[325173833,1714548646916,-500.0,0.00011951,2]
[325173834,1714548646926,-500.0,0.00011951,2]
[325173837,1714548646935,-854.35,0.00011951,2]
[325173839,1714548646945,-500.0,0.00011951,2]
[325173841,1714548646955,-549.82,0.00011951,2]
[325173842,1714548646966,-1562.99,0.00011951,2]
[325173844,1714548646980,-500.0,0.00011951,2]
[325173846,1714548646990,-743.19,0.00011951,2]
[325173849,1714548647002,-1681.17,0.00011951,2]
[325173851,1714548647013,-500.0,0.00011951,2]
[325173853,1714548647023,-641.41,0.00011951,2]
[325173855,1714548647032,-500.0,0.00011951,2]
[325173856,1714548647042,-3924.98,0.00011951,2]
[325173858,1714548647051,-500.0,0.00011951,2]
[325173860,1714548647061,-500.0,0.00011951,2]
[325173863,1714548647071,-500.0,0.00011951,2]
[325173864,1714548647082,-500.0,0.00011951,2]
[325173868,1714548647103,-563.12600266,0.00011951,2]
[325173870,1714548647114,-560.12,0.00011951,2]
[325173872,1714548647124,-1693.6,0.00011951,2]
[325173874,1714548647134,-799.94,0.00011951,2]
[325173876,1714548647144,-500.0,0.00011951,2]
[325173878,1714548647154,-500.0,0.00011951,2]
[325173880,1714548647164,-501.49,0.00011951,2]
[325173882,1714548647174,-500.0,0.00011951,2]
[325173884,1714548647184,-500.0,0.00011951,2]
[325173886,1714548647193,-8732.08,0.00011951,2]
[325173888,1714548647203,-476.69,0.00011951,2]
[325173890,1714548647214,-962.59,0.00011951,2]
[325173892,1714548647229,-500.0,0.00011951,2]
[325173894,1714548647239,-500.0,0.00011951,2]
[325173896,1714548647249,-177.61628187,0.00011952,2]
[325173898,1714548647259,-5000.0,0.00012,2]
[325173901,1714548647268,-8134.86991787,0.00012,2]
[325173903,1714548647278,-668761.0,0.00012,2]
[325173905,1714548647288,-117911.53650714,0.00012,2]
[325173907,1714548647298,-1000.0,0.00012,2]
[325173909,1714548647308,-409.3828276,0.00012,2]
[325173911,1714548647319,-69316.80054582,0.00012,2]
[325173913,1714548647328,-566.18,0.00012051,2]
[325173915,1714548647337,-625.08,0.00012051,2]
[325173917,1714548647347,-500.0,0.00012051,2]
[325173919,1714548647358,-500.0,0.00012051,2]
[325173921,1714548647367,-150.0,0.00012051,2]
[325173923,1714548647377,-500.0,0.00012051,2]
[325173925,1714548647386,-500.0,0.00012051,2]
[325173927,1714548647396,-500.0,0.00012051,2]
[325173929,1714548647406,-500.0,0.00012051,2]
[325173932,1714548647416,-509.21,0.00012051,2]
[325173934,1714548647425,-500.0,0.00012051,2]
[325173936,1714548647434,-903.38,0.00012051,2]
[325173938,1714548647443,-500.0,0.00012051,2]
[325173940,1714548647452,-1197.23,0.00012051,2]
[325173942,1714548647462,-500.0,0.00012051,2]
[325173944,1714548647475,-548.43,0.00012051,2]
[325173946,1714548647484,-500.0,0.00012051,2]
[325173947,1714548647494,-375.18672883,0.00012051,2]
[325173948,1714548647503,-500.0,0.00012051,2]
[325173949,1714548647512,-524.35,0.00012051,2]
[325173950,1714548647522,-500.0,0.00012051,2]
[325173951,1714548647531,-623.95,0.00012051,2]
[325173952,1714548647541,-500.0,0.00012051,2]
[325173953,1714548647551,-500.0,0.00012051,2]
[325173954,1714548647559,-1199.51,0.00012051,2]
[325173955,1714548647569,-500.0,0.00012051,2]
[325173957,1714548647578,-825.59,0.00012051,2]
[325173959,1714548647588,-500.0,0.00012051,2]
[325173961,1714548647598,-500.0,0.00012052,2]
[325173963,1714548647607,-500.0,0.00012052,2]
[325173965,1714548647617,-527.34,0.00012052,2]
[325173967,1714548647626,-500.0,0.00012052,2]
[325173969,1714548647636,-500.0,0.00012052,2]
[325173971,1714548647645,-500.0,0.00012052,2]
[325173973,1714548647655,-639.1,0.00012052,2]
[325173975,1714548647665,-500.0,0.00012052,2]
[325173977,1714548647674,-500.0,0.00012052,2]
[325173979,1714548647684,-500.0,0.00012052,2]
[325173981,1714548647693,-500.0,0.00012052,2]
[325173983,1714548647701,-500.0,0.00012052,2]
[325173985,1714548647711,-500.0,0.00012052,2]
[325173987,1714548647720,-841.43,0.00012052,2]
[325173989,1714548647732,-500.0,0.00012052,2]
[325173991,1714548647742,-500.0,0.00012052,2]
[325173993,1714548647751,-500.0,0.00012052,2]
[325173995,1714548647761,-680.47,0.00012052,2]
[325173997,1714548647770,-500.0,0.00012052,2]
[325173999,1714548647779,-1039.02,0.00012052,2]
[325174001,1714548647788,-500.0,0.00012052,2]
[325174003,1714548647798,-500.0,0.00012052,2]
[325174005,1714548647808,-500.0,0.00012052,2]
[325174007,1714548647818,-500.0,0.00012052,2]
[325174009,1714548647828,-500.0,0.00012052,2]
[325174011,1714548647837,-743.43,0.00012052,2]
[325174013,1714548647846,-500.0,0.00012052,2]
[325174015,1714548647856,-13768.89,0.00012052,2]
[325174017,1714548647866,-500.0,0.00012052,2]
[325174019,1714548647875,-500.0,0.00012052,2]
[325174021,1714548647884,-2347.0,0.00012052,2]
[325174023,1714548647893,-500.0,0.00012052,2]
[325174025,1714548647903,-500.0,0.00012052,2]
[325174027,1714548647912,-500.0,0.00012052,2]
[325174029,1714548647921,-937.35,0.00012052,2]
[325174031,1714548647930,-821.34,0.00012052,2]
[325174033,1714548647940,-511.32,0.00012052,2]
[325174035,1714548647949,-500.0,0.00012052,2]
[325174037,1714548647961,-685.63,0.00012052,2]
[325174040,1714548647975,-500.0,0.00012052,2]
[325174042,1714548647984,-620.89,0.00012052,2]
[325174044,1714548647994,-500.0,0.00012052,2]
[325174046,1714548648007,-500.0,0.00012052,2]
[325174048,1714548648017,-510.96,0.00012052,2]
[325174050,1714548648026,-500.0,0.00012052,2]
[325174052,1714548648036,-500.0,0.00012052,2]
[325174054,1714548648046,-500.0,0.00012052,2]
[325174056,1714548648055,-544.77,0.00012052,2]
[325174058,1714548648064,-628.46,0.00012052,2]
[325174060,1714548648074,-500.0,0.00012052,2]
[325174062,1714548648084,-2076.55,0.00012052,2]
[325174064,1714548648094,-816.62,0.00012052,2]
[325174066,1714548648104,-500.0,0.00012052,2]
[325174068,1714548648114,-1164.36,0.00012052,2]
[325174070,1714548648124,-500.0,0.00012052,2]
[325174072,1714548648134,-500.0,0.00012052,2]
[325174074,1714548648143,-2247.77,0.00012052,2]
[325174076,1714548648153,-1255.27,0.00012052,2]
[325174078,1714548648162,-559.18,0.00012052,2]
[325174080,1714548648172,-1984.57,0.00012052,2]
[325174082,1714548648182,-7982.22,0.00012052,2]
[325174084,1714548648191,-1034.21,0.00012052,2]
[325174086,1714548648201,-823.55,0.00012052,2]
[325174088,1714548648211,-7713.43,0.00012052,2]
[325174090,1714548648220,-774.68,0.00012052,2]
[325174092,1714548648232,-500.0,0.00012052,2]
[325174094,1714548648242,-3660.22,0.00012052,2]
[325174096,1714548648250,-500.0,0.00012052,2]
[325174098,1714548648260,-500.0,0.00012052,2]
[325174100,1714548648271,-559.31,0.00012052,2]
[325174102,1714548648280,-500.0,0.00012052,2]
[325174104,1714548648289,-5028.53,0.00012052,2]
[325174106,1714548648298,-500.0,0.00012052,2]
[325174108,1714548648308,-286.671206,0.00012052,2]
[325174110,1714548648317,-500.0,0.00012053,2]
[325174112,1714548648327,-586.59,0.00012053,2]
[325174114,1714548648336,-841.33913508,0.00012114,2]
[325174116,1714548648346,-330.17,0.00012158,2]
[325174118,1714548648355,-3100.0,0.000122,4]
[325174120,1714548648364,-504.71,0.00012224,2]
[325174122,1714548648374,-500.0,0.00012225,2]
[325174124,1714548648383,-500.0,0.00012225,2]
[325174127,1714548648393,-500.0,0.00012225,2]
[325174129,1714548648402,-156.29,0.00012225,2]
[325174131,1714548648412,-500.0,0.00012225,2]
[325174133,1714548648423,-500.0,0.00012225,2]
[325174136,1714548648432,-512.38,0.00012225,2]
[325174140,1714548648441,-500.0,0.00012225,2]
[325174143,1714548648451,-571.36,0.00012225,2]
[325174145,1714548648461,-500.0,0.00012225,2]
[325174147,1714548648471,-500.0,0.00012225,2]
[325174149,1714548648483,-4232.42,0.00012225,2]
[325174151,1714548648493,-616.56,0.00012225,2]
[325174153,1714548648502,-500.0,0.00012225,2]
[325174155,1714548648511,-500.0,0.00012225,2]
[325174157,1714548648521,-1786.87,0.00012225,2]
[325174160,1714548648531,-500.0,0.00012225,2]
[325174162,1714548648540,-553.64,0.00012225,2]
[325174164,1714548648549,-500.0,0.00012225,2]
[325174166,1714548648559,-500.0,0.00012225,2]
[325174168,1714548648568,-2605.64,0.00012225,2]
[325174170,1714548648577,-500.0,0.00012225,2]
[325174172,1714548648587,-500.0,0.00012225,2]
[325174174,1714548648596,-500.0,0.00012225,2]
[325174176,1714548648605,-854.35,0.00012225,2]
[325174178,1714548648615,-491.10135617,0.00012225,2]
[325174180,1714548648624,-1562.99,0.00012225,2]
[325174182,1714548648634,-500.0,0.00012225,2]
[325174184,1714548648643,-743.19,0.00012225,2]
[325174186,1714548648652,-1681.17,0.00012225,2]
[325174188,1714548648662,-500.0,0.00012225,2]
[325174190,1714548648671,-641.41,0.00012225,2]
[325174192,1714548648681,-185.43426999,0.00012225,2]
[325174194,1714548648691,-3924.98,0.00012225,2]
[325174196,1714548648700,-215.37037681,0.00012225,2]
[325174198,1714548648710,-500.0,0.00012225,2]
[325174200,1714548648719,-500.0,0.00012225,2]
[325174202,1714548648737,-560.12,0.00012225,2]
[325174206,1714548648747,-1693.6,0.00012225,2]
[325174208,1714548648756,-799.94,0.00012225,2]
[325174211,1714548648766,-500.0,0.00012225,2]
[325174213,1714548648775,-500.0,0.00012225,2]
[325174215,1714548648785,-501.49,0.00012225,2]
[325174217,1714548648794,-500.0,0.00012225,2]
[325174219,1714548648804,-8732.08,0.00012225,2]
[325174221,1714548648813,-962.59,0.00012225,2]
[325174223,1714548648822,-500.0,0.00012225,2]
[325174225,1714548648832,-500.0,0.00012225,2]
[325174227,1714548648841,-970.0,0.00012251,2]
[325174229,1714548648850,-1395.0,0.00012251,2]
[325174231,1714548648860,-2298.0,0.00012251,2]
[325174233,1714548648869,-5737.0,0.00012251,2]
[325174235,1714548648879,-5899.0,0.00012251,2]
[325174237,1714548648888,-462.0,0.00012251,2]
[325174239,1714548648898,-16341.793,0.00012251,2]
[325174241,1714548648908,-1258.0,0.00012251,2]
[325174243,1714548648918,-1227.0,0.00012251,2]
[325174245,1714548648928,-4100.0,0.000123,4]
[325174247,1714548648937,-164.3,0.00012325,2]
[325174249,1714548648946,-500.0,0.00012325,2]
[325174251,1714548648955,-150.0,0.00012325,2]
[325174253,1714548648967,-500.0,0.00012325,2]
[325174255,1714548648979,-500.0,0.00012325,2]
[325174257,1714548648989,-270.34265595,0.00012325,2]
[325174259,1714548648998,-509.21,0.00012325,2]
[325174261,1714548649013,-500.0,0.00012325,2]
[325174263,1714548649023,-903.38,0.00012325,2]
[325174265,1714548649032,-1197.23,0.00012325,2]
[325174267,1714548649042,-500.0,0.00012325,2]
[325174269,1714548649051,-548.43,0.00012325,2]
[325174272,1714548649061,-500.0,0.00012325,2]
[325174274,1714548649071,-500.0,0.00012325,2]
[325174275,1714548649080,-524.35,0.00012325,2]
[325174278,1714548649092,-500.0,0.00012325,2]
[325174280,1714548649101,-623.95,0.00012325,2]
[325174282,1714548649111,-500.0,0.00012325,2]
[325174284,1714548649120,-1199.51,0.00012325,2]
[325174286,1714548649131,-825.59,0.00012325,2]
[325174288,1714548649140,-500.0,0.00012325,2]
[325174290,1714548649150,-339.3055227,0.00012326,2]
[325174292,1714548649160,-500.0,0.00012326,2]
[325174294,1714548649169,-527.34,0.00012326,2]
[325174296,1714548649179,-500.0,0.00012326,2]
[325174298,1714548649189,-500.0,0.00012326,2]
[325174300,1714548649199,-500.0,0.00012326,2]
[325174302,1714548649209,-639.1,0.00012326,2]
[325174304,1714548649218,-500.0,0.00012326,2]
[325174306,1714548649230,-500.0,0.00012326,2]
[325174308,1714548649241,-500.0,0.00012326,2]
[325174310,1714548649250,-500.0,0.00012326,2]
[325174312,1714548649260,-259.85391076,0.00012326,2]
[325174314,1714548649269,-437.81,0.00012326,2]
[325174316,1714548649279,-841.43,0.00012326,2]
[325174318,1714548649288,-500.0,0.00012326,2]
[325174320,1714548649297,-500.0,0.00012326,2]
[325174322,1714548649306,-500.0,0.00012326,2]
[325174324,1714548649315,-680.47,0.00012326,2]
[325174326,1714548649325,-500.0,0.00012326,2]
[325174328,1714548649334,-1039.02,0.00012326,2]
[325174330,1714548649344,-500.0,0.00012326,2]
[325174331,1714548649353,-500.0,0.00012326,2]
[325174332,1714548649362,-500.0,0.00012326,2]
[325174333,1714548649371,-500.0,0.00012326,2]
[325174334,1714548649380,-500.0,0.00012326,2]
[325174335,1714548649389,-743.43,0.00012326,2]
[325174336,1714548649398,-500.0,0.00012326,2]
[325174337,1714548649407,-13768.89,0.00012326,2]
[325174338,1714548649416,-500.0,0.00012326,2]
[325174339,1714548649426,-500.0,0.00012326,2]
[325174341,1714548649435,-2347.0,0.00012326,2]
[325174343,1714548649445,-500.0,0.00012326,2]
[325174345,1714548649454,-500.0,0.00012326,2]
[325174347,1714548649463,-500.0,0.00012326,2]
[325174349,1714548649472,-937.35,0.00012326,2]
[325174351,1714548649484,-821.34,0.00012326,2]
[325174353,1714548649493,-511.32,0.00012326,2]
[325174355,1714548649503,-685.63,0.00012326,2]
[325174357,1714548649512,-500.0,0.00012326,2]
[325174359,1714548649522,-620.89,0.00012326,2]
[325174377,1714548649660,-500.0,0.00012326,2]
[325174380,1714548649696,-500.0,0.00012326,2]
[325174382,1714548649706,-510.96,0.00012326,2]
[325174384,1714548649715,-500.0,0.00012326,2]
[325174386,1714548649728,-500.0,0.00012326,2]
[325174388,1714548649738,-544.77,0.00012326,2]
[325174390,1714548649747,-628.46,0.00012326,2]
[325174392,1714548649757,-500.0,0.00012326,2]
[325174394,1714548649767,-2076.55,0.00012326,2]
[325174396,1714548649777,-816.62,0.00012326,2]
[325174398,1714548649787,-500.0,0.00012326,2]
[325174400,1714548649796,-1164.36,0.00012326,2]
[325174402,1714548649806,-500.0,0.00012326,2]
[325174404,1714548649816,-500.0,0.00012326,2]
[325174406,1714548649826,-2247.77,0.00012326,2]
[325174408,1714548649835,-1255.27,0.00012326,2]
[325174410,1714548649845,-559.18,0.00012326,2]
[325174412,1714548649855,-1984.57,0.00012326,2]
[325174414,1714548649865,-7982.22,0.00012326,2]
[325174416,1714548649875,-1034.21,0.00012326,2]
[325174418,1714548649885,-823.55,0.00012326,2]
[325174420,1714548649894,-7713.43,0.00012326,2]
[325174422,1714548649903,-774.68,0.00012326,2]
[325174424,1714548649913,-500.0,0.00012326,2]
[325174426,1714548649923,-3660.22,0.00012326,2]
[325174428,1714548649932,-168.44231072,0.00012326,2]
[325174430,1714548649942,-500.0,0.00012326,2]
[325174432,1714548649951,-559.31,0.00012326,2]
[325174434,1714548649965,-500.0,0.00012326,2]
[325174436,1714548649978,-5028.53,0.00012326,2]
[325174438,1714548649987,-500.0,0.00012326,2]
[325174440,1714548649996,-500.0,0.00012327,2]
[325174442,1714548650012,-586.59,0.00012327,2]
[325174444,1714548650022,-190.11243803,0.00012399,2]
[325174447,1714548650032,-12622.09297705,0.000124,2]
[325174449,1714548650041,-5200.0,0.000124,4]
[325174451,1714548650050,-177.61628187,0.00012426,2]
[325174453,1714548650060,-2147.73453415,0.0001245,2]
[325174455,1714548650069,-245.0,0.00012457,2]
[325174457,1714548650079,-1377.14574965,0.00012472,2]
[325174459,1714548650088,-743.87,0.00012475,2]
[325174461,1714548650099,-500.0,0.00012499,2]
[325174463,1714548650108,-500.0,0.00012499,2]
[325174465,1714548650117,-500.0,0.00012499,2]
[325174467,1714548650126,-500.0,0.00012499,2]
[325174469,1714548650135,-500.0,0.00012499,2]
[325174471,1714548650144,-500.0,0.00012499,2]
[325174473,1714548650154,-500.0,0.00012499,2]
[325174475,1714548650163,-4232.42,0.00012499,2]
[325174477,1714548650174,-616.56,0.00012499,2]
[325174479,1714548650183,-500.0,0.00012499,2]
[325174481,1714548650192,-500.0,0.00012499,2]
[325174483,1714548650202,-1786.87,0.00012499,2]
[325174485,1714548650211,-500.0,0.00012499,2]
[325174487,1714548650221,-553.64,0.00012499,2]
[325174489,1714548650233,-500.0,0.00012499,2]
[325174491,1714548650242,-2605.64,0.00012499,2]
[325174493,1714548650251,-500.0,0.00012499,2]
[325174495,1714548650260,-500.0,0.00012499,2]
[325174497,1714548650269,-500.0,0.00012499,2]
[325174499,1714548650279,-854.35,0.00012499,2]
[325174501,1714548650288,-1562.99,0.00012499,2]
[325174503,1714548650298,-500.0,0.00012499,2]
[325174505,1714548650307,-743.19,0.00012499,2]
[325174507,1714548650317,-1681.17,0.00012499,2]
[325174509,1714548650326,-500.0,0.00012499,2]
[325174511,1714548650335,-641.41,0.00012499,2]
[325174513,1714548650345,-3924.98,0.00012499,2]
[325174515,1714548650355,-500.0,0.00012499,2]
[325174517,1714548650364,-500.0,0.00012499,2]
[325174519,1714548650374,-560.12,0.00012499,2]
[325174521,1714548650383,-1693.6,0.00012499,2]
[325174523,1714548650392,-799.94,0.00012499,2]
[325174525,1714548650401,-545.10403974,0.00012499,2]
[325174527,1714548650411,-501.49,0.00012499,2]
[325174529,1714548650422,-8732.08,0.00012499,2]
[325174531,1714548650431,-962.59,0.00012499,2]
[325174533,1714548650441,-500.0,0.00012499,2]
[325174535,1714548650450,-500.0,0.00012499,2]
[325174537,1714548650460,-1000.0,0.000125,4]
[325174539,1714548650469,-1794.0,0.00012585,2]
[325174541,1714548650482,-346.16050584,0.00012598,2]
[325174543,1714548650491,-162.41008324,0.00012598,2]
[325174545,1714548650500,-175.64203584,0.00012598,2]
[325174547,1714548650510,-155.69804417,0.00012598,2]
[325174549,1714548650519,-208.03231766,0.00012598,2]
[325174551,1714548650529,-500.0,0.00012599,2]
[325174553,1714548650538,-500.0,0.00012599,2]
[325174555,1714548650548,-500.0,0.00012599,2]
[325174557,1714548650557,-509.21,0.00012599,2]
[325174560,1714548650568,-500.0,0.00012599,2]
[325174562,1714548650577,-1197.23,0.00012599,2]
[325174564,1714548650586,-500.0,0.00012599,2]
[325174566,1714548650597,-548.43,0.00012599,2]
[325174568,1714548650607,-500.0,0.00012599,2]
[325174570,1714548650616,-500.0,0.00012599,2]
[325174572,1714548650625,-524.35,0.00012599,2]
[325174574,1714548650635,-500.0,0.00012599,2]
[325174576,1714548650645,-623.95,0.00012599,2]
[325174578,1714548650654,-500.0,0.00012599,2]
[325174580,1714548650663,-1199.51,0.00012599,2]
[325174581,1714548650673,-825.59,0.00012599,2]
[325174583,1714548650682,-500.0,0.00012599,2]
[325174585,1714548650692,-500.0,0.000126,2]
[325174587,1714548650701,-527.34,0.000126,2]
[325174589,1714548650711,-500.0,0.000126,2]
[325174591,1714548650720,-500.0,0.000126,2]
[325174594,1714548650732,-500.0,0.000126,2]
[325174596,1714548650741,-639.1,0.000126,2]
[325174598,1714548650750,-500.0,0.000126,2]
[325174600,1714548650760,-500.0,0.000126,2]
[325174602,1714548650769,-500.0,0.000126,2]
[325174604,1714548650779,-576.80632878,0.000126,2]
[325174606,1714548650788,-841.43,0.000126,2]
[325174608,1714548650797,-500.0,0.000126,2]
[325174610,1714548650806,-500.0,0.000126,2]
[325174612,1714548650816,-500.0,0.000126,2]
[325174614,1714548650825,-680.47,0.000126,2]
[325174616,1714548650834,-500.0,0.000126,2]
[325174618,1714548650843,-1039.02,0.000126,2]
[325174620,1714548650852,-500.0,0.000126,2]
[325174622,1714548650861,-500.0,0.000126,2]
[325174624,1714548650870,-500.0,0.000126,2]
[325174626,1714548650879,-500.0,0.000126,2]
[325174628,1714548650889,-500.0,0.000126,2]
[325174630,1714548650900,-500.0,0.000126,2]
[325174632,1714548650910,-13768.89,0.000126,2]
[325174634,1714548650920,-743.43,0.000126,2]
[325174636,1714548650929,-500.0,0.000126,2]
[325174638,1714548650939,-500.0,0.000126,2]
[325174640,1714548650948,-2347.0,0.000126,2]
[325174642,1714548650962,-1000.0,0.000126,4]
[325174644,1714548650971,-500.0,0.000126,2]
[325174646,1714548650983,-500.0,0.000126,2]
[325174648,1714548650993,-500.0,0.000126,2]
[325174650,1714548651005,-937.35,0.000126,2]
[325174652,1714548651015,-821.34,0.000126,2]
[325174654,1714548651024,-511.32,0.000126,2]
[325174656,1714548651034,-685.63,0.000126,2]
[325174658,1714548651044,-500.0,0.000126,2]
[325174660,1714548651053,-620.89,0.000126,2]
[325174662,1714548651063,-500.0,0.000126,2]
[325174664,1714548651072,-500.0,0.000126,2]
[325174666,1714548651084,-510.96,0.000126,2]
[325174667,1714548651093,-500.0,0.000126,2]
[325174668,1714548651103,-245.092968,0.000126,2]
[325174669,1714548651113,-544.77,0.000126,2]
[325174670,1714548651122,-628.46,0.000126,2]
[325174671,1714548651131,-500.0,0.000126,2]
[325174672,1714548651140,-2076.55,0.000126,2]
[325174673,1714548651150,-816.62,0.000126,2]
[325174674,1714548651159,-500.0,0.000126,2]
[325174675,1714548651168,-1164.36,0.000126,2]
[325174677,1714548651178,-500.0,0.000126,2]
[325174679,1714548651189,-500.0,0.000126,2]
[325174681,1714548651199,-2247.77,0.000126,2]
[325174683,1714548651208,-1255.27,0.000126,2]
[325174685,1714548651218,-559.18,0.000126,2]
[325174687,1714548651231,-1984.57,0.000126,2]
[325174689,1714548651242,-7982.22,0.000126,2]
[325174691,1714548651252,-1034.21,0.000126,2]
[325174693,1714548651262,-823.55,0.000126,2]
[325174695,1714548651271,-7713.43,0.000126,2]
[325174697,1714548651281,-774.68,0.000126,2]
[325174699,1714548651290,-500.0,0.000126,2]
[325174701,1714548651300,-3660.22,0.000126,2]
[325174703,1714548651310,-500.0,0.000126,2]
[325174705,1714548651319,-559.31,0.000126,2]
[325174707,1714548651330,-500.0,0.000126,2]
[325174709,1714548651341,-5028.53,0.000126,2]
[325174711,1714548651351,-500.0,0.000126,2]
[325174712,1714548651361,-500.0,0.00012601,2]
[325174714,1714548651371,-586.59,0.00012601,2]
[325174716,1714548651381,-215.2915629,0.00012673,2]
[325174718,1714548651393,-155.0,0.000127,2]
[325174720,1714548651403,-1000.0,0.000127,4]
[325174722,1714548651414,-7104.37319763,0.000127,2]
[325174724,1714548651424,-300.72609229,0.00012727,2]
[325174725,1714548651435,-1078.19113587,0.00012729,2]